fUSD/lending_fUSD_20260420
["ID","MTS","AMOUNT","RATE_DAILY","PERIOD"]
[420869240,1776679833098,-200.0,0.0001075,2]
[420869241,1776679833108,-1048.0,0.0001075,2]
[420869242,1776679833119,-622.0,0.0001075,2]
[420869243,1776679833128,-155.0,0.00010867,5]
[420869244,1776679833139,-159.0,0.00010867,5]
[420869245,1776679833149,-3240.0,0.00010959,2]
[420869246,1776679833159,-150.0,0.00010959,2]
[420869247,1776679833169,-3265.5892671,0.00010996,2]
[420869248,1776679833179,-1551.0933966,0.00011099,2]
[420869249,1776679833188,-1551.09339656,0.00011099,2]
[420869250,1776679833198,-1551.09339656,0.00011099,2]
[420869251,1776679833208,-1551.09339656,0.00011099,2]
[420869252,1776679833218,-1551.09339656,0.00011099,2]
[420869253,1776679833234,-1551.09339656,0.00011099,2]
[420869254,1776679833244,-1551.09339656,0.00011099,2]
[420869255,1776679833254,-1551.09339656,0.00011099,2]
[420869256,1776679833264,-2000.0,0.00011228,2]
[420869257,1776679833274,-164.25,0.00011228,2]
[420869258,1776679833284,-1784.0,0.00011335,2]
[420869259,1776679833294,-1551.09339656,0.00011439,2]
[420869260,1776679833303,-3292.0,0.00011448,2]
[420869261,1776679833313,-1323.0,0.00011496,3]
[420869262,1776679833323,-2087.95,0.00011507,2]
[420869263,1776679833332,-904.12832983,0.000117,2]
[420869264,1776679833343,-1270.53,0.00011739,2]
[420869265,1776679833352,-197.73195464,0.0001176,2]
[420869266,1776679833362,-1551.09339656,0.000119,2]
[420869267,1776679833373,-200.0,0.00011903,2]
[420869268,1776679833383,-200.0,0.00011904,2]
[420869269,1776679833393,-250.0,0.00011907,2]
[420869270,1776679833403,-388.95,0.0001194,2]
[420869271,1776679833413,-172.59,0.00011977,2]
[420869272,1776679833423,-347053.89473002,0.00012,2]
[420869273,1776679833439,-30848.48587256,0.00012,2]
[420869274,1776679833451,-98205.39064908,0.00012,2]
[420869275,1776679833464,-63802.7830013,0.00012,2]
[420869276,1776679833494,-556.78589336,0.00012,2]
[420869291,1776679838992,-197.73195464,0.0001176,2]
[420869292,1776679839002,-75538.82111707,0.00012,2]
[420869293,1776679839013,-46781.34206415,0.00012,2]
[420869294,1776679839024,-1826.1386616,0.00012,2]
[420869295,1776679839043,-2749.91851468,0.00012,2]
[420869296,1776679839062,-1997.20121288,0.00012,2]
[420869297,1776679839081,-42758.22699723,0.00012,2]
[420869298,1776679839100,-496.39233885,0.00012,2]
[420869303,1776679839720,-787.67,0.00012,2]
[420869304,1776679840099,-150140.00000002,0.00012,2]
[420869305,1776679840260,-946.05260061,0.00012,2]
[420869306,1776679840272,-259.39905185,0.00012,2]
[420869330,1776679845621,-185.04929507,0.0001,2]
[420869331,1776679845630,-377.35064493,0.0001079,2]
[420869332,1776679845641,-38.64935507,0.0001079,2]
[420869333,1776679845651,-169.32816297,0.00011448,2]
[420869334,1776679845662,-137.02248196,0.0001176,2]
[420869335,1776679845674,-60.70947268,0.0001176,2]
[420869336,1776679845683,-14936.77913808,0.00012,2]
[420869337,1776679845699,-144823.30061121,0.00012,2]
[420869338,1776679845788,-666.66,0.00012,2]
[420869339,1776679845976,-673.3310658,0.00012,2]
[420869340,1776679845999,-46912.46364581,0.00012,2]
[420869341,1776679846010,-7142.93930139,0.00012,2]
[420869350,1776679846190,-2666.32079483,0.00012,2]
[420869479,1776679872269,10000.01,7.745e-05,2]
[420869480,1776679872295,2445.2895,7.745e-05,2]
[420869481,1776679925540,500.0,7.742e-05,2]
[420869482,1776679925594,500.0,7.742e-05,2]
[420869483,1776679925797,500.0,7.742e-05,2]
[420869484,1776679925853,565.42783588,7.742e-05,2]
[420869485,1776679934290,154.0,7.745e-05,3]
[420869486,1776679937616,500.0,7.742e-05,2]
[420869487,1776679937659,500.0,7.742e-05,2]
[420869488,1776679937695,500.0,7.742e-05,2]
[420869489,1776679937739,500.0,7.742e-05,2]
[420869490,1776679937775,500.0,7.742e-05,2]
[420869491,1776679937809,500.0,7.742e-05,2]
[420869492,1776679938079,500.0,7.742e-05,2]
[420869493,1776679938114,500.0,7.742e-05,2]
[420869494,1776679938149,245.94183517,7.742e-05,2]
[420869495,1776679938185,500.0,7.742e-05,2]
[420869496,1776679938233,500.0,7.742e-05,2]
[420869497,1776679938267,89.35082895,7.742e-05,2]
[420869498,1776679938295,410.64917105,7.742e-05,2]
[420869499,1776679938842,500.0,7.742e-05,2]
[420869500,1776679938883,500.0,7.742e-05,2]
[420869501,1776679938919,500.0,7.742e-05,2]
[420869502,1776679938967,500.0,7.742e-05,2]
[420869503,1776679939013,500.0,7.742e-05,2]
[420869504,1776679939053,500.0,7.742e-05,2]
[420869505,1776679939088,500.0,7.742e-05,2]
[420869506,1776679946992,6155.495,7.745e-05,2]
[420869507,1776679964800,162.71427602,7.742e-05,2]
[420869508,1776679975833,500.0,8.219e-05,2]
[420869509,1776679976006,500.0,8.219e-05,2]
[420869510,1776679976085,500.0,8.219e-05,2]
[420869511,1776679976345,638.16858728,8.219e-05,2]
[420869512,1776679985776,500.0,7.742e-05,2]
[420869513,1776679992635,952.0,8.219e-05,3]
[420869514,1776679992778,500.0,7.742e-05,2]
[420869515,1776679992824,500.0,7.742e-05,2]
[420869516,1776679993373,5247.1271367,7.743e-05,2]
[420869517,1776679993401,10000.01,7.743e-05,2]
[420869518,1776679993429,10000.01,7.743e-05,2]
[420869519,1776679993456,10000.01,7.743e-05,2]
[420869520,1776679993484,10000.01,7.743e-05,2]
[420869521,1776679993512,10000.01,7.743e-05,2]
[420869522,1776679993539,10000.01,7.743e-05,2]
[420869523,1776679993567,10000.01,7.743e-05,2]
[420869524,1776679993594,10000.01,7.743e-05,2]
[420869525,1776679993621,10000.01,7.743e-05,2]
[420869526,1776680027182,300.36101483,7.59e-05,2]
[420869527,1776680041471,300.0,7.742e-05,2]
[420869528,1776680050510,154.0,7.59e-05,3]
[420869529,1776680055818,150.0,0.00016438,30]
[420869530,1776680056563,150.0,0.00016438,30]
[420869531,1776680056614,200.0,0.00016438,30]
[420869532,1776680097026,-502.922461,7.742e-05,2]
[420869533,1776680110449,155.0,7.742e-05,3]
[420869534,1776680110511,905.0,7.742e-05,3]
[420869535,1776680117678,154.0,7.742e-05,3]
[420869536,1776680119343,471.45322182,7.742e-05,2]
[420869537,1776680161846,300.0,7.742e-05,2]
[420869538,1776680166768,150.0,7.742e-05,3]
[420869539,1776680167437,154.0,7.742e-05,3]
[420869540,1776680182333,163.0,7.742e-05,3]
[420869541,1776680221288,300.0,7.742e-05,2]
[420869542,1776680227536,874.0,7.742e-05,3]
[420869543,1776680234309,154.0,7.742e-05,3]
[420869544,1776680248597,250.0,0.00016226,30]
[420869545,1776680288179,226.88084095,7.742e-05,2]
[420869546,1776680288507,527.32687057,7.742e-05,2]
[420869547,1776680289173,154.0,7.742e-05,3]
[420869548,1776680351206,831.0,7.742e-05,3]
[420869549,1776680357267,154.0,7.742e-05,3]
[420869550,1776680407656,155.0,7.742e-05,3]
[420869551,1776680414205,789.0,7.742e-05,3]
[420869552,1776680418043,154.0,7.742e-05,3]
[420869553,1776680461616,300.0,7.742e-05,2]
[420869554,1776680466281,500.0,7.742e-05,2]
[420869555,1776680466332,445.79948512,7.742e-05,2]
[420869556,1776680466540,500.0,7.742e-05,2]
[420869557,1776680466795,476.70465954,7.742e-05,3]
[420869558,1776680466822,273.29534046,7.742e-05,3]
[420869559,1776680472961,154.0,7.742e-05,3]
[420869560,1776680478492,500.0,7.742e-05,2]
[420869561,1776680490484,4225.384,7.588e-05,2]
[420869562,1776680490526,172.423,7.588e-05,2]
[420869563,1776680508069,500.0,7.742e-05,2]
[420869564,1776680510906,163.0,7.742e-05,3]
[420869565,1776680511351,500.0,7.643e-05,2]
[420869566,1776680521563,300.0,7.742e-05,2]
[420869567,1776680525347,712.0,7.742e-05,3]
[420869569,1776680529870,352.0457227,7.742e-05,2]
[420869570,1776680531704,155.0,7.742e-05,3]
[420869571,1776680585309,677.0,7.742e-05,3]
[420869572,1776680642491,150.0,7.742e-05,2]
[420869573,1776680646042,656.0,7.742e-05,3]
[420869574,1776680652508,155.0,7.742e-05,3]
[420869575,1776680703922,150.0,6.953e-05,2]
[420869576,1776680703955,150.0,7.34e-05,2]
[420869577,1776680703988,150.0,7.726e-05,2]
[420869578,1776680705975,623.0,7.742e-05,3]
[420869579,1776680707125,156.0,7.742e-05,3]
[420869580,1776680732143,150.0,6.953e-05,2]
[420869581,1776680732210,150.0,7.34e-05,2]
[420869582,1776680732246,150.0,7.726e-05,2]
[420869583,1776680732493,150.0,6.953e-05,2]
[420869584,1776680732559,150.0,7.34e-05,2]
[420869585,1776680732633,150.0,7.726e-05,2]
[420869586,1776680738817,150.0,6.953e-05,2]
[420869587,1776680738848,152.1122056,7.726e-05,2]
[420869588,1776680739074,150.0,6.953e-05,2]
[420869589,1776680739105,150.0,7.726e-05,2]
[420869590,1776680739698,150.0,6.953e-05,2]
[420869591,1776680739765,150.0,7.34e-05,2]
[420869592,1776680739796,150.0,7.726e-05,2]
[420869593,1776680744470,150.0,6.953e-05,2]
[420869594,1776680744506,150.0,7.108e-05,2]
[420869595,1776680744579,150.0,7.262e-05,2]
[420869596,1776680744649,150.0,7.417e-05,2]
[420869597,1776680744683,150.0,7.572e-05,2]
[420869598,1776680744745,286.49130564,7.726e-05,2]
[420869599,1776680751776,150.0,6.953e-05,2]
[420869600,1776680751812,150.0,7.34e-05,2]
[420869601,1776680751849,150.0,7.726e-05,2]
[420869602,1776680751881,150.0,6.953e-05,2]
[420869603,1776680751914,243.41394637,7.726e-05,2]
[420869604,1776680751994,153.10779315,6.953e-05,2]
[420869605,1776680765548,592.0,7.742e-05,3]
[420869606,1776680773386,155.0,7.742e-05,3]
[420869607,1776680814475,163.0,7.742e-05,3]
[420869608,1776680821423,300.0,7.742e-05,2]
[420869609,1776680822546,150.0,7.742e-05,2]
[420869610,1776680833668,152.0,7.568e-05,7]
[420869611,1776680858453,453.15662945,7.742e-05,2]
[420869613,1776680886675,562.0,7.742e-05,3]
[420869614,1776680965735,-5000.01,7.743e-05,2]
[420869615,1776680968299,-5000.01,7.743e-05,2]
[420869616,1776680975212,-5000.01,7.743e-05,2]
[420869617,1776680977407,-5000.01,7.743e-05,2]
[420869618,1776680980619,-5000.01,7.743e-05,2]
[420869619,1776680983525,-5000.01,7.743e-05,2]
[420869620,1776680988184,-5000.01,7.743e-05,2]
[420869621,1776680989582,-5000.01,7.743e-05,2]
[420869622,1776680992909,-5000.01,7.743e-05,2]
[420869623,1776680995603,-5000.01,7.743e-05,2]
[420869624,1776681001263,-5000.01,7.743e-05,2]
[420869625,1776681001390,300.0,7.742e-05,2]
[420869626,1776681001745,-5000.01,7.743e-05,2]
[420869627,1776681002774,150.0,7.742e-05,2]
[420869628,1776681004821,-5000.01,7.743e-05,2]
[420869629,1776681007816,-5000.01,7.743e-05,2]
[420869630,1776681008097,547.0,7.743e-05,3]
[420869631,1776681015267,-5000.01,7.743e-05,2]
[420869632,1776681017381,-5000.01,7.743e-05,2]
[420869633,1776681020087,-5000.01,7.743e-05,2]
[420869634,1776681022969,-5000.01,7.743e-05,2]
[420869662,1776681028302,-6038.7838965,7.743e-05,2]
[420869663,1776681028335,-10000.01,7.743e-05,2]
[420869664,1776681028353,-10000.01,7.743e-05,2]
[420869665,1776681029012,-10000.01,7.743e-05,2]
[420869666,1776681029027,-10000.01,7.743e-05,2]
[420869667,1776681029041,-10000.01,7.743e-05,2]
[420869668,1776681029059,-10000.01,7.743e-05,2]
[420869669,1776681029077,-10000.01,7.743e-05,2]
[420869670,1776681029095,-10000.01,7.743e-05,2]
[420869671,1776681029110,-10000.01,7.743e-05,2]
[420869673,1776681029188,-10000.01,7.743e-05,2]
[420869674,1776681029306,-10000.01,7.743e-05,2]
[420869675,1776681029345,-10000.01,7.743e-05,2]
[420869676,1776681029360,-10000.01,7.743e-05,2]
[420869679,1776681031680,-591.86802884,7.743e-05,2]
[420869680,1776681031737,-262.02687277,7.743e-05,2]
[420869681,1776681031749,-2245.88125224,7.743e-05,2]
[420869682,1776681031760,-3031.8631592,7.743e-05,2]
[420869683,1776681031771,-421221.58752825,7.743e-05,2]
[420869684,1776681031786,-173755.20071763,7.743e-05,2]
[420869685,1776681031798,-109488.65910501,7.743e-05,2]
[420869686,1776681031809,-188423.48836839,7.743e-05,2]
[420869687,1776681031820,-1254.41808677,7.743e-05,2]
[420869688,1776681031835,-14145.21777574,7.743e-05,2]
[420869689,1776681031846,-636.65095903,7.743e-05,2]
[420869690,1776681031866,-856.08682692,7.743e-05,2]
[420869933,1776681040470,-1164.20361154,7.743e-05,2]
[420869936,1776681040497,-14989.6315154,7.743e-05,2]
[420869939,1776681040508,-436.75223375,7.743e-05,2]
[420869941,1776681040520,-993.71667762,7.743e-05,2]
[420869943,1776681040535,-1588.24988366,7.743e-05,2]
[420869946,1776681040550,-1033.56296967,7.743e-05,2]
[420869948,1776681040561,-3242.36316023,7.743e-05,2]
[420869951,1776681040572,-75748.74591576,7.743e-05,2]
[420869953,1776681040584,-46781.34206415,7.743e-05,2]
[420869955,1776681040596,-1826.1386616,7.743e-05,2]
[420869960,1776681040627,-999.8506,7.743e-05,2]
[420869962,1776681040638,-1021.88178341,7.743e-05,2]
[420869964,1776681040650,-435.0,7.743e-05,2]
[420869966,1776681040660,-330.86769147,7.743e-05,2]
[420869969,1776681040672,-402535.19711775,7.743e-05,2]
[420869971,1776681040682,-152.0,7.745e-05,7]
[420869973,1776681040691,-1654.942805,7.945e-05,2]
[420869975,1776681040700,-4609.325197,8.178e-05,2]
[420869977,1776681040710,-500.0,8.219e-05,2]
[420869979,1776681040719,-500.0,8.219e-05,2]
[420869981,1776681040728,-496.7180111,8.219e-05,2]
[420869983,1776681040738,-150.0,8.362e-05,2]
[420869985,1776681040749,-210.02317478,8.406e-05,2]
[420869987,1776681040758,-500.70074508,8.406e-05,2]
[420869989,1776681040768,-502.14384265,8.406e-05,2]
[420869991,1776681040778,-500.0,8.406e-05,2]
[420869993,1776681040787,-848.31126582,8.459e-05,2]
[420869995,1776681040796,-547.0,8.493e-05,3]
[420869997,1776681040805,-420.0,8.516e-05,2]
[420869999,1776681040815,-255.0,8.516e-05,2]
[420870001,1776681040824,-1526.93068013,8.517e-05,2]
[420870003,1776681040833,-166.67,8.654e-05,2]
[420870005,1776681040843,-21872.51,8.661e-05,2]
[420870007,1776681040852,-218.4,8.732e-05,2]
[420870009,1776681040861,-8931.74,8.759e-05,2]
[420870011,1776681040870,-150.0,8.806e-05,2]
[420870013,1776681040879,-255.431314,8.807e-05,2]
[420870015,1776681040888,-1382.09009037,9e-05,2]
[420870016,1776681040898,-419.632808,9e-05,2]
[420870017,1776681040907,-500.0,9.045e-05,2]
[420870018,1776681040916,-547.0,9.244e-05,3]
[420870019,1776681040925,-587.0,9.368e-05,2]
[420870020,1776681040934,-578.20924308,9.382e-05,2]
[420870021,1776681040944,-500.0,9.382e-05,2]
[420870022,1776681040953,-824.76650872,9.382e-05,2]
[420870023,1776681040962,-194.72792766,9.382e-05,2]
[420870024,1776681040971,-670.58624095,9.382e-05,2]
[420870025,1776681040980,-200.0,9.382e-05,2]
[420870026,1776681040988,-151.0,9.382e-05,2]
[420870027,1776681040997,-194.72792766,9.382e-05,2]
[420870028,1776681041006,-1732.30424815,9.382e-05,2]
[420870029,1776681041018,-267.69575185,9.382e-05,2]
[420870030,1776681041027,-743.50770149,9.382e-05,2]
[420870031,1776681041036,-727.63199466,9.382e-05,2]
[420870032,1776681041047,-431.69598331,9.382e-05,2]
[420870033,1776681041057,-360.93840157,9.382e-05,2]
[420870034,1776681041072,-479.73362046,9.382e-05,2]
[420870035,1776681041081,-857.61637954,9.382e-05,2]
[420870039,1776681041412,-1047.50039939,7.745e-05,2]
[420870040,1776681041424,-14.36583438,7.745e-05,2]
[420870041,1776681041433,-251.59416562,9.382e-05,2]
[420870042,1776681041444,-625.01358539,9.382e-05,2]
[420870043,1776681041476,-265.77586945,9.382e-05,2]
[420870044,1776681041485,-2000.0,9.382e-05,2]
[420870045,1776681041495,-2000.0,9.382e-05,2]
[420870046,1776681041504,-2000.0,9.382e-05,2]
[420870047,1776681041514,-151.1837373,9.382e-05,2]
[420870048,1776681041523,-2000.0,9.382e-05,2]
[420870049,1776681041532,-2000.0,9.382e-05,2]
[420870050,1776681041541,-1328.27659266,9.382e-05,2]
[420870051,1776681041551,-2000.0,9.382e-05,2]
[420870052,1776681041560,-2000.0,9.382e-05,2]
[420870053,1776681041569,-644.79446246,9.382e-05,2]
[420870054,1776681041578,-1436.49968269,9.382e-05,2]
[420870055,1776681041587,-174.61919141,9.382e-05,2]
[420870056,1776681041596,-279.9045709,9.382e-05,2]
[420870057,1776681041605,-152.0,9.382e-05,2]
[420870058,1776681041614,-152.0,9.382e-05,2]
[420870059,1776681041623,-152.0,9.382e-05,2]
[420870060,1776681041632,-152.0,9.382e-05,2]
[420870061,1776681041641,-152.0,9.382e-05,2]
[420870062,1776681041651,-152.0,9.382e-05,2]
[420870063,1776681041660,-152.0,9.382e-05,2]
[420870064,1776681041669,-194.72792766,9.382e-05,2]
[420870065,1776681041678,-152.0,9.382e-05,2]
[420870066,1776681041687,-152.0,9.382e-05,2]
[420870067,1776681041698,-152.0,9.382e-05,2]
[420870068,1776681041707,-196.90989024,9.382e-05,2]
[420870069,1776681041716,-219.23011724,9.382e-05,2]
[420870070,1776681041725,-227.34163157,9.382e-05,2]
[420870071,1776681041734,-235.75327194,9.382e-05,2]
[420870072,1776681041743,-244.476143,9.382e-05,2]
[420870073,1776681041753,-253.52176029,9.382e-05,2]
[420870074,1776681041762,-262.90206542,9.382e-05,2]
[420870075,1776681041771,-272.62944185,9.382e-05,2]
[420870076,1776681041780,-282.71673119,9.382e-05,2]
[420870077,1776681041788,-293.17725025,9.382e-05,2]
[420870078,1776681041798,-304.02480851,9.382e-05,2]
[420870079,1776681041807,-315.27372642,9.382e-05,2]
[420870080,1776681041816,-181.09167523,9.382e-05,2]
[420870081,1776681041825,-479.84,9.409e-05,2]
[420870082,1776681041834,-500.0,9.437e-05,2]
[420870083,1776681041844,-151.0,9.437e-05,2]
[420870084,1776681041853,-500.0,9.492e-05,2]
[420870085,1776681041863,-151.0,9.492e-05,2]
[420870086,1776681041873,-945.97189863,9.538e-05,2]
[420870087,1776681041882,-6542.32959728,9.538e-05,2]
[420870088,1776681041891,-500.0,9.547e-05,2]
[420870089,1776681041900,-151.0,9.547e-05,2]
[420870090,1776681041909,-500.0,9.602e-05,2]
[420870091,1776681041918,-151.0,9.602e-05,2]
[420870092,1776681041928,-500.0,9.657e-05,2]
[420870093,1776681041937,-271.34949305,9.657e-05,2]
[420870094,1776681041946,-500.0,9.712e-05,2]
[420870095,1776681041955,-500.0,9.767e-05,2]
[420870096,1776681041964,-500.0,9.822e-05,2]
[420870097,1776681041974,-500.0,9.877e-05,2]
[420870098,1776681041983,-216.60931017,9.93e-05,2]
[420870099,1776681041991,-200.0,9.93e-05,2]
[420870100,1776681042000,-216.60931018,9.93e-05,2]
[420870101,1776681042010,-771.01748645,9.93e-05,2]
[420870102,1776681042019,-1377.42282659,9.93e-05,2]
[420870103,1776681042028,-717.24937142,9.93e-05,2]
[420870104,1776681042038,-207.8888015,9.93e-05,2]
[420870105,1776681042048,-290.26104003,9.93e-05,2]
[420870106,1776681042058,-216.60931017,9.93e-05,2]
[420870107,1776681042067,-500.0,9.932e-05,2]
[420870108,1776681042076,-943.73,9.981e-05,2]
[420870109,1776681042086,-1500.0,9.981e-05,2]
[420870110,1776681042095,-500.0,9.987e-05,2]
[420870111,1776681042104,-547.0,9.994e-05,3]
[420870112,1776681042114,-200.0,0.0001,2]
[420870113,1776681042124,-105017.56,0.00010074,2]
[420870114,1776681042133,-166.67,0.00010082,2]
[420870115,1776681042143,-500.0,0.00010301,2]
[420870116,1776681042152,-263.0,0.00010305,2]
[420870117,1776681042161,-150.0,0.00010453,2]
[420870118,1776681042171,-150.0,0.00010453,2]
[420870119,1776681042180,-150.0,0.00010453,2]
[420870120,1776681042190,-1428.38747117,0.00010478,2]
[420870121,1776681042199,-1349.0,0.00010505,2]
[420870122,1776681042209,-3528.0,0.00010505,2]
[420870123,1776681042218,-623.0,0.00010505,2]
[420870124,1776681042228,-200.0,0.00010548,2]
[420870125,1776681042237,-160.0,0.00010611,2]
[420870126,1776681042246,-5530.0,0.000107,5]
[420870127,1776681042255,-547.0,0.00010744,3]
[420870128,1776681042265,-1265.0,0.0001079,2]
[420870129,1776681042274,-1219.0,0.0001079,2]
[420870130,1776681042284,-927.0,0.0001079,2]
[420870131,1776681042293,-150.0,0.00010912,21]
[420870132,1776681042302,-150.0,0.00010912,21]
[420870133,1776681042311,-500.0,0.00010958,2]
[420870134,1776681042321,-500.0,0.00010958,3]
[420870135,1776681042330,-500.0,0.00010958,4]
[420870136,1776681042340,-500.0,0.00010958,5]
[420870137,1776681042349,-3177.51,0.00011,2]
[420870138,1776681042362,-3177.51,0.00011,2]
[420870139,1776681042371,-3177.57,0.00011,2]
[420870140,1776681042381,-3177.57,0.00011,2]
[420870141,1776681042390,-10761.36177038,0.00011,2]
[420870142,1776681042400,-1475.71529445,0.00011026,2]
[420870143,1776681042409,-21474.34500913,0.00011402,2]
[420870144,1776681042418,-547.0,0.00011495,3]
[420870145,1776681042432,-1395.40972217,0.0001176,2]
[420870146,1776681042442,-162.27127,0.0001188,2]
[420870147,1776681042451,-25000.0,0.00011891,2]
[420870148,1776681042461,-155.0,0.00011899,2]
[420870149,1776681042470,-12423.09557632,0.000119,2]
[420870150,1776681042483,-17576.90442368,0.000119,2]
[420870151,1776681042493,-285956.55843813,0.000119,2]
[420870152,1776681042520,-53236.87278132,0.000119,2]
[420870153,1776681042532,-1260.99400965,0.000119,2]
[420870154,1776681042554,-265.1286,0.000119,2]
[420870156,1776681042569,-333.26194966,0.000119,2]
[420870175,1776681045396,-2474.0,0.00010505,2]
[420870176,1776681045406,-930.27314811,0.0001176,2]
[420870177,1776681045415,-90897.72685189,0.000119,2]
[420870181,1776681045573,-23580.51719375,0.000119,2]
[420870182,1776681045633,-753.05,0.000119,2]
[420870183,1776681045645,-1898.27450502,0.000119,2]
[420870190,1776681045871,-29566.25085867,0.000119,2]
[420870196,1776681046257,-268561.96908975,0.000119,2]
[420870197,1776681046269,-457.67996474,0.000119,2]
[420870200,1776681069037,1226.858903,7.945e-05,2]
[420870201,1776681092781,8773.151097,7.643e-05,2]
[420870202,1776681092809,10000.01,7.643e-05,2]
[420870203,1776681092836,10000.01,7.643e-05,2]
[420870204,1776681092863,10000.01,7.643e-05,2]
[420870205,1776681092892,10000.01,7.643e-05,2]
[420870206,1776681092919,10000.01,7.643e-05,2]
[420870207,1776681092945,10000.01,7.643e-05,2]
[420870208,1776681092971,10000.01,7.643e-05,2]
[420870209,1776681092997,10000.01,7.643e-05,2]
[420870210,1776681093022,10000.01,7.643e-05,2]
[420870212,1776681125962,432.0,7.643e-05,3]
[420870213,1776681135346,154.0,7.643e-05,3]
[420870214,1776681148015,150.0,0.00016226,30]
[420870215,1776681148138,150.0,0.00016226,30]
[420870216,1776681148196,150.0,0.00016226,30]
[420870217,1776681148245,500.0,0.00016226,30]
[420870218,1776681148279,185.87830768,0.00016226,30]
[420870219,1776681148331,500.0,0.00016226,30]
[420870220,1776681148415,458.77621057,0.00016226,30]
[420870221,1776681148453,249.07491366,0.00016226,30]
[420870222,1776681156827,410.0,7.643e-05,3]
[420870223,1776681202082,-3117.0,7.643e-05,2]
[420870239,1776681247087,390.0,7.643e-05,3]
[420870240,1776681257342,1200.0,7.642e-05,2]
[420870241,1776681301135,300.0,7.642e-05,2]
[420870242,1776681301236,1200.0,7.642e-05,2]
[420870243,1776681308061,156.0,7.642e-05,3]
[420870244,1776681308742,500.0,0.00016226,30]
[420870245,1776681308800,500.0,0.00016226,30]
[420870246,1776681308841,500.0,0.00016226,30]
[420870247,1776681308900,404.80253387,0.00016226,30]
[420870248,1776681309896,150.0,0.00016226,30]
[420870249,1776681310055,150.0,0.00016226,30]
[420870250,1776681310287,245.7860907,0.00016226,30]
[420870251,1776681310980,500.0,0.00016226,30]
[420870252,1776681311011,500.0,0.00016226,30]
[420870253,1776681311139,500.0,0.00016226,30]
[420870254,1776681311191,500.0,0.00016226,30]
[420870255,1776681311306,500.0,0.00016226,30]
[420870256,1776681311347,500.0,0.00016226,30]
[420870257,1776681311378,500.0,0.00016226,30]
[420870258,1776681311472,500.0,0.00016226,30]
[420870259,1776681311507,500.0,0.00016226,30]
[420870260,1776681311537,500.0,0.00016226,30]
[420870261,1776681311639,500.0,0.00016226,30]
[420870262,1776681311697,500.0,0.00016226,30]
[420870263,1776681311728,500.0,0.00016226,30]
[420870264,1776681311803,500.0,0.00016226,30]
[420870265,1776681311860,500.0,0.00016226,30]
[420870266,1776681311891,500.0,0.00016226,30]
[420870267,1776681311968,500.0,0.00016226,30]
[420870268,1776681312023,500.0,0.00016226,30]
[420870269,1776681312076,292.42327193,0.00016226,30]
[420870270,1776681312204,350.74021032,0.00016226,30]
[420870271,1776681312235,430.10199557,0.00016226,30]
[420870272,1776681312919,500.0,0.00016226,30]
[420870273,1776681313085,500.0,0.00016226,30]
[420870274,1776681313115,500.0,0.00016226,30]
[420870275,1776681313248,500.0,0.00016226,30]
[420870276,1776681313289,500.0,0.00016226,30]
[420870277,1776681313396,500.0,0.00016226,30]
[420870278,1776681313436,500.0,0.00016226,30]
[420870279,1776681313568,450.93088634,0.00016226,30]
[420870280,1776681313610,500.0,0.00016226,30]
[420870281,1776681314352,500.0,0.00016226,30]
[420870282,1776681314428,500.0,0.00016226,30]
[420870283,1776681314463,500.0,0.00016226,30]
[420870284,1776681314509,500.0,0.00016226,30]
[420870285,1776681314542,500.0,0.00016226,30]
[420870286,1776681314581,500.0,0.00016226,30]
[420870287,1776681314617,500.0,0.00016226,30]
[420870288,1776681314668,450.0,0.00016226,30]
[420870289,1776681314702,507.0,0.00016226,30]